bitfinex-derivatives/quotes_ETHF0:USTF0_20251013
["timestamp","ask_amount","ask_price","bid_price","bid_amount"]
[1760320046525,0.7935,4167.4,4167.3,3.2078]
[1760320046721,0.1401,4167.5,4166.7,3.4363]
[1760320046722,0.7935,4166.8,4166.7,3.4363]
[1760320047128,0.43156,4167.2,4166.7,3.6706]
[1760320047325,1.22506,4167.2,4167.1,0.8016]
[1760320047724,4.34342103,4167.2,4167.1,0.8016]
[1760320047924,4.34342103,4167.2,4167.1,0.2285]
[1760320048222,0.7935,4167.2,4167.1,0.8016]
[1760320049327,0.2287,4167.2,4167.1,0.8016]
[1760320049522,0.7935,4167.8,4167.7,0.8016]
[1760320050122,0.452,4167.8,4167.4,0.43153]
[1760320050326,0.7935,4167.5,4167.4,0.99883]
[1760320050526,0.7935,4167.5,4167.4,1.23313]
[1760320050735,0.452,4167.9,4167.8,1.23308]
[1760320051032,0.2287,4167.9,4167.8,4.0094]
[1760320051429,0.43149,4167.8,4167.3,3.63934]
[1760320051629,0.2287,4167.4,4167.3,4.44094]
[1760320051833,0.3415,4167.6,4167.3,4.44094]
[1760320051834,0.5702,4167.6,4167.5,0.4628]
[1760320052128,0.5702,4167.6,4167.5,0.8016]
[1760320052330,0.3415,4168.1,4167.5,0.9448]
[1760320052530,0.00220443,4168.6,4168.5,0.4628]
[1760320052827,0.43132,4169.5,4169.1,0.3388]
[1760320053021,0.43132,4169.5,4168.9,3.2078]
[1760320053022,0.57142,4169.5,4168.9,3.2078]
[1760320053227,3.0997027,4169.0,4168.9,3.5466]
[1760320053425,0.43135,4169.2,4168.9,3.5466]
[1760320053626,0.43136,4169.1,4168.9,3.5466]
[1760320053827,3.10662587,4169.1,4168.9,3.2078]
[1760320054028,0.00212836,4169.1,4169.0,0.482]
[1760320054632,0.00212836,4169.1,4169.0,0.91336]
[1760320055232,3.2078,4170.1,4170.0,0.482]
[1760320056136,0.43125,4170.2,4170.1,0.3388]
[1760320056329,0.43378735,4170.2,4170.1,0.3388]
[1760320056632,3.58898277,4170.2,4170.0,0.3414258]
[1760320056834,0.3415,4170.1,4170.0,0.3414258]
[1760320057433,3.15773277,4170.2,4170.1,0.3388]
[1760320057634,0.00253735,4170.2,4170.1,0.3388]
[1760320057833,0.00253735,4170.2,4170.1,0.8016]
[1760320062037,0.23123735,4170.2,4170.1,0.8016]
[1760320062239,0.79603735,4170.2,4170.1,0.2285]
[1760320062844,1.22475,4170.1,4170.0,0.0026258]
[1760320063041,0.43135,4169.1,4168.9,3.2078]
[1760320063240,0.7935,4169.0,4168.9,3.4363]
[1760320063440,3.3089589,4169.0,4168.9,4.0094]
[1760320063844,3.8737589,4169.0,4168.9,3.7751]
[1760320064145,0.88343,4168.4,4168.3,3.2078]
[1760320064346,0.77293,4168.4,4168.3,3.2078]
[1760320064642,3.86933395,4168.4,4168.3,3.5466]
[1760320065340,3.86933395,4168.4,4168.3,3.54859585]
[1760320066149,0.4314,4168.7,4168.4,0.3388]
[1760320066344,0.3415,4168.8,4168.3,3.20979585]
[1760320066345,0.43141,4168.6,4168.3,3.20979585]
[1760320066642,3.61074312,4168.6,4168.3,3.20979585]
[1760320067146,0.357,4168.5,4168.4,0.3302]
[1760320067346,0.78843,4168.4,4168.3,3.20979585]
[1760320067843,1.25053,4168.4,4168.3,3.20979585]
[1760320068035,1.25053,4168.4,4168.3,3.75759585]
[1760320068345,4.38277006,4168.4,4168.3,3.20979585]
[1760320069740,4.38277006,4168.4,4168.3,0.00199585]
[1760320073151,4.35427006,4168.4,4168.3,0.00199585]
[1760320075051,3.92284006,4168.4,4168.3,0.33889585]
[1760320075247,3.92284006,4168.4,4168.3,0.56939585]
[1760320075645,3.92284006,4168.4,4168.3,0.00199585]
[1760320079751,1.21728,4167.9,4167.8,3.2078]
[1760320079947,0.7858,4167.9,4167.8,3.2078]
[1760320080148,3.93721693,4167.9,4167.8,3.2078]
[1760320080654,3.93721693,4167.9,4167.8,3.20964648]
[1760320083150,3.93721693,4167.9,4167.8,3.44014648]
[1760320083349,3.93721693,4167.9,4167.8,3.20964648]
[1760320084653,3.93721693,4167.9,4167.8,3.77704648]
[1760320084959,9.18721693,4167.9,4167.8,3.77704648]
[1760320085661,9.18721693,4167.9,4167.8,3.20964648]
[1760320086554,3.93721693,4167.9,4167.8,0.00184648]
[1760320086951,0.9165,4167.5,4166.8,3.2078]
[1760320087152,0.3285,4167.4,4166.8,4.008]
[1760320087357,0.7858,4166.9,4166.8,4.008]
[1760320087654,0.7858,4166.9,4166.8,3.2078]
[1760320087655,3.83766638,4166.9,4166.8,3.2078]
[1760320088057,3.84010916,4166.9,4166.8,3.21053781]
[1760320088964,0.00244278,4166.9,4166.8,4.01073781]
[1760320089360,3.6393,4167.7,4167.6,1.23171]
[1760320089361,3.2078,4167.7,4167.6,1.23171]
[1760320089662,0.3285,4168.2,4167.9,0.43148]
[1760320089863,0.2311,4168.0,4167.9,0.99888]
[1760320090156,3.0659912,4168.1,4168.0,0.4729]
[1760320090351,3.3944912,4168.0,4167.9,3.63928]
[1760320090556,0.3285,4168.0,4167.9,3.63928]
[1760320090762,0.3285,4168.0,4167.9,0.43148]
[1760320090964,3.40823552,4168.0,4167.9,0.43148]
[1760320091558,3.40823552,4168.0,4167.9,0.76838]
[1760320092763,3.07973552,4168.0,4167.9,0.76838]
[1760320092964,3.07973552,4168.0,4167.9,1.23168]
[1760320093163,3.31083552,4168.0,4167.9,1.23168]
[1760320093559,3.86553552,4168.0,4167.9,1.23168]
[1760320093760,3.86553552,4168.0,4167.9,0.43148]
[1760320093963,0.7858,4167.8,4167.7,0.43149]
[1760320094159,0.3285,4167.5,4167.4,3.2078]
[1760320094359,0.4592,4167.5,4167.4,3.2078]
[1760320094653,3.55481265,4167.5,4167.4,3.2078]
[1760320095260,3.42411265,4167.5,4167.4,3.5447]
[1760320095655,3.09561265,4167.5,4167.4,3.5447]
[1760320095862,0.3285,4168.0,4167.5,0.136]
[1760320096366,0.00205009,4168.1,4167.5,0.136]
[1760320096367,3.16289522,4167.9,4167.8,0.76838]
[1760320096666,3.16289522,4167.9,4167.7,3.2078]
[1760320096667,0.00205009,4168.1,4168.0,0.3369]
[1760320096965,3.08159138,4168.1,4168.0,0.3369]
[1760320098567,0.00205009,4168.1,4168.0,0.4729]
[1760320098760,0.3285,4169.4,4168.7,1.0785]
[1760320098966,3.2078,4169.7,4169.2,0.3369]
[1760320099161,6.7147142,4169.7,4169.2,0.3369]
[1760320099361,6.3862142,4169.7,4169.5,0.43131]
[1760320099563,6.7147142,4169.7,4169.5,0.76821]
[1760320099763,6.71723817,4169.7,4169.5,0.76821]
[1760320100166,0.3285,4169.6,4169.3,0.43133]
[1760320100366,0.3285,4169.2,4169.1,3.2078]
[1760320100559,3.63541766,4169.5,4168.9,0.43137]
[1760320100758,3.63541766,4169.5,4168.7,0.3369]
[1760320100759,0.3285,4169.1,4169.0,0.43136]
[1760320100966,3.07636502,4169.2,4169.0,0.43136]
[1760320101156,3.40486502,4169.4,4169.0,0.56736]
[1760320101359,0.43134,4169.3,4168.8,0.76828]
[1760320101569,0.43134,4169.3,4168.8,0.43138]
[1760320101769,0.325,4169.2,4168.8,0.43138]
[1760320101970,0.43134,4169.3,4168.9,0.3368]
[1760320102171,3.41853504,4169.1,4168.9,0.3368]
[1760320102475,0.325,4169.1,4168.9,0.3368]
[1760320102767,0.325,4169.4,4169.1,0.43135]
[1760320102966,3.21032397,4169.7,4169.2,0.3368]
[1760320103167,0.325,4169.3,4169.2,0.3368]
[1760320103469,0.325,4169.5,4169.3,0.43133]
[1760320103672,0.325,4169.5,4169.4,0.3368]
[1760320103967,0.00252397,4169.7,4169.6,0.3368]
[1760320104868,0.43131,4169.6,4169.2,0.3368]
[1760320105065,0.325,4169.6,4169.2,0.43134]
[1760320105372,3.16459579,4169.7,4169.3,0.43133]
[1760320105373,0.759,4169.4,4169.3,0.43133]
[1760320105669,0.759,4169.4,4169.3,0.76813]
[1760320106072,0.759,4169.4,4169.1,3.2078]
[1760320106073,0.325,4169.3,4169.1,3.2078]
[1760320106267,0.759,4169.2,4169.1,3.2078]
[1760320106567,3.9251224,4169.2,4169.1,3.2078]
[1760320107868,0.759,4168.2,4168.1,3.2078]
[1760320108167,0.759,4168.2,4167.5,3.2078]
[1760320108168,0.2128,4167.6,4167.5,3.2078]
[1760320108375,0.325,4167.6,4167.5,3.2078]
[1760320108669,0.43156,4167.2,4166.9,3.2078]
[1760320108862,0.325,4167.0,4166.9,3.2078]
[1760320109059,0.325,4166.9,4166.8,0.00273781]
[1760320109460,3.4588436,4166.9,4166.8,0.00273781]
[1760320110364,0.325,4166.8,4165.8,3.2078]
[1760320110563,0.325,4166.4,4165.8,3.2078]
[1760320110965,3.16686311,4166.3,4165.8,3.2078]
[1760320111473,0.325,4166.2,4165.8,3.21071789]
[1760320111772,0.325,4166.2,4165.8,0.00291789]
[1760320111773,3.13885165,4166.1,4165.8,0.00291789]
[1760320111972,0.88738,4166.0,4165.8,0.00291789]
[1760320112363,3.46385165,4165.9,4165.8,0.00291789]
[1760320113477,3.13885165,4165.9,4165.8,0.33971789]
[1760320113777,0.325,4166.2,4166.0,0.3368]
[1760320113973,0.0027318,4166.3,4166.0,0.132]
[1760320114281,0.0027318,4166.3,4166.2,0.3368]
[1760320114876,0.0027318,4166.3,4165.9,0.76848]
[1760320114877,0.325,4166.2,4165.9,0.76848]
[1760320115077,3.11738421,4166.3,4165.9,0.76848]
[1760320115374,3.11465241,4166.1,4166.0,0.4688]
[1760320115579,0.75667,4166.1,4165.9,3.2078]
[1760320115775,0.325,4165.9,4165.8,0.00291789]
[1760320116177,3.49767986,4165.9,4165.8,0.00291789]
[1760320116880,6.70547986,4165.9,4165.8,0.00291789]
[1760320117275,3.49767986,4165.9,4165.8,0.00291789]
[1760320120784,3.17267986,4165.9,4165.8,0.77141789]
[1760320122184,3.49767986,4165.9,4165.8,0.77141789]
[1760320122783,3.17267986,4165.9,4165.8,0.77141789]
[1760320123178,3.17267986,4165.9,4165.8,0.00291789]
[1760320123179,0.325,4165.9,4165.8,0.00291789]
[1760320123685,3.39494076,4165.9,4165.8,0.00291789]
[1760320124384,6.60274076,4165.9,4165.8,0.00291789]
[1760320124685,0.346,4165.4,4165.3,3.2078]
[1760320125079,3.48851715,4165.4,4165.3,3.2078]
[1760320125586,3.48851715,4165.4,4165.3,3.55689051]
[1760320125979,3.48851715,4165.4,4165.3,3.21019051]
[1760320126176,0.3487318,4166.3,4166.1,0.43166]
[1760320126377,0.346,4166.2,4166.1,0.3467]
[1760320126675,3.5382777,4166.2,4165.9,0.3467]
[1760320126875,3.5382777,4166.2,4165.9,0.77838]
[1760320127079,3.5382777,4166.2,4165.9,0.43168]
[1760320127480,0.346,4166.1,4165.9,0.77838]
[1760320127681,0.346,4166.1,4165.9,0.43168]
[1760320127988,0.346,4166.1,4166.0,0.3467]
[1760320128183,3.70984645,4166.0,4165.4,0.3467]
[1760320128484,0.346,4166.0,4165.7,0.7784]
[1760320128674,3.58375645,4165.9,4165.4,0.43173]
[1760320128876,3.15206645,4165.9,4165.7,0.3467]
[1760320129076,3.15206645,4165.9,4165.6,0.43171]
[1760320129274,0.346,4165.7,4165.4,0.43173]
[1760320129478,0.346,4165.6,4165.4,0.43173]
[1760320129686,0.346,4165.5,4165.3,0.34909051]
[1760320129883,0.346,4165.5,4165.3,0.78083051]
[1760320130280,0.346,4165.6,4165.3,0.78083051]
[1760320130781,0.346,4165.6,4164.5,3.63963]
[1760320130782,0.4318,4164.8,4164.5,3.63963]
[1760320130984,0.1261,4165.0,4164.8,0.4318]
[1760320131186,0.346,4164.9,4164.8,0.4318]
[1760320131484,0.4318,4164.8,4164.5,3.5545]
[1760320131786,3.45684553,4164.7,4164.5,3.55705495]
[1760320132085,0.3148,4164.6,4164.5,3.55705495]
[1760320132983,0.3148,4164.6,4164.5,3.21035495]
[1760320133187,3.43908615,4164.6,4164.5,3.21035495]
[1760320133981,0.74656,4165.2,4164.7,0.4318]
[1760320134189,0.43178,4165.0,4164.6,0.75421]
[1760320134379,0.3148,4164.8,4164.6,0.75421]
[1760320134683,3.42635266,4164.7,4164.6,0.75421]
[1760320134886,0.3148,4164.6,4164.5,3.21035495]
[1760320135282,3.42635266,4164.6,4164.5,3.21035495]
[1760320137986,3.87135266,4164.6,4164.5,3.21035495]
[1760320138485,3.87135266,4164.6,4164.5,3.75385495]
[1760320138677,0.3148,4165.2,4164.6,0.3224]
[1760320138879,0.74653,4165.5,4164.6,0.3224]
[1760320139080,3.15486121,4165.1,4165.0,0.75417]
[1760320139280,3.63954,4165.4,4165.1,0.43176]
[1760320139482,0.3148,4165.2,4165.0,0.3224]
[1760320139682,3.15486121,4165.1,4165.0,0.3224]
[1760320139988,0.3148,4165.1,4165.0,0.3224]
[1760320140185,3.5076719,4165.1,4165.0,0.3224]
[1760320142887,3.9526719,4165.1,4165.0,0.3224]
[1760320143487,3.9526719,4165.1,4164.9,0.43178]
[1760320143696,3.1928719,4165.1,4165.0,0.8998]
[1760320144085,0.2273,4165.6,4165.5,1.33153]
[1760320144390,3.32030784,4165.6,4165.5,1.33153]
[1760320145589,3.53800784,4165.6,4165.5,1.33153]
[1760320145782,3.5226,4166.0,4165.5,1.33153]
[1760320145783,3.5226,4166.0,4165.8,0.43169]
[1760320145983,0.445,4166.0,4165.9,0.7642]
[1760320146183,0.54978,4167.0,4166.2,1.19585]
[1760320146388,0.7625318,4166.3,4166.2,0.7642]
[1760320146588,0.7598,4165.5,4165.4,0.5435]
[1760320146789,0.2273,4165.5,4165.4,3.972]
[1760320147294,0.2273,4165.7,4165.6,0.97521]
[1760320147589,3.86284835,4165.7,4165.6,0.5435]
[1760320148686,3.54804835,4165.7,4165.6,0.5435]
[1760320149388,3.86284835,4165.7,4165.6,0.5435]
[1760320149991,3.54804835,4165.7,4165.6,0.7642]
[1760320150185,3.33034835,4165.7,4165.6,0.7642]
[1760320151297,3.10304835,4165.7,4165.6,0.7642]
[1760320151797,3.33034835,4165.7,4165.6,0.7642]
[1760320152898,3.10304835,4165.7,4165.6,0.7642]
[1760320153692,0.3175318,4166.3,4165.5,5.68336888]
[1760320153994,0.2300318,4166.3,4166.2,0.7642]
[1760320154194,0.7625318,4166.3,4166.2,0.7642]
[1760320154396,3.94520723,4166.3,4166.2,0.7642]
[1760320155198,3.18540723,4166.3,4166.2,0.7642]
[1760320155398,0.0027318,4166.3,4166.2,0.7642]
[1760320158487,0.7598,4167.5,4167.4,0.5435]
[1760320158690,0.2273,4167.5,4167.4,1.19573]
[1760320158886,3.29171992,4167.5,4167.4,1.19573]
[1760320159089,3.82421992,4167.5,4167.4,0.2211]
[1760320159298,3.82421992,4167.5,4167.2,3.63934]
[1760320159499,3.82421992,4167.5,4167.2,4.18284]
[1760320159500,0.7598,4167.3,4167.2,4.18284]
[1760320159695,0.7598,4167.3,4167.2,4.40354]
[1760320159898,0.445,4167.3,4167.2,4.40354]
[1760320160101,0.7598,4167.3,4167.2,4.40354]
[1760320162296,0.2132683,4167.5,4167.4,1.19973]
[1760320162700,3.26373189,4167.5,4167.4,1.19973]
[1760320162896,3.47253189,4167.5,4167.4,1.19973]
[1760320163093,3.80303189,4167.5,4167.4,1.19973]
[1760320164419,3.47253189,4167.5,4167.4,1.19973]
[1760320164604,0.0021683,4167.5,4167.4,1.19973]
[1760320166204,0.1277,4169.5,4167.5,1.0788]
[1760320166205,0.43139,4168.8,4167.5,1.0788]
[1760320166397,0.2111,4168.7,4168.6,0.7682]
[1760320166593,3.05134168,4168.9,4168.8,0.2152]
[1760320166896,3.05134168,4168.9,4168.5,0.1273]
[1760320166897,0.4199,4169.2,4169.1,0.64655]
[1760320167098,0.4199,4169.2,4169.1,0.98455]
[1760320167299,3.47422553,4169.2,4169.1,1.2017476]
[1760320167898,3.47422553,4169.2,4169.1,0.7703976]
[1760320168401,0.42223721,4169.2,4169.1,0.7703976]
[1760320168599,0.00233721,4169.2,4169.1,0.7703976]
[1760320169604,3.2078,4170.0,4169.9,1.19947]
[1760320170005,6.295201,4170.0,4169.9,1.19947]
[1760320170304,3.087401,4170.0,4169.9,1.19947]
[1760320170705,0.21373631,4170.0,4169.9,0.7682]
[1760320171005,0.4199,4169.6,4169.5,0.5532]
[1760320171208,0.4199,4169.6,4169.5,0.8955]
[1760320171400,0.2111,4169.6,4169.5,0.8955]
[1760320172901,0.97288,4169.9,4169.8,0.5532]
[1760320173102,1.18168,4169.9,4169.8,0.5532]
[1760320173304,0.2111,4169.7,4169.6,0.7682]
[1760320174110,0.7504,4169.7,4169.6,0.338]
[1760320174619,0.7504,4169.7,4169.6,0.5532]
[1760320175211,0.4199,4169.7,4169.6,0.7682]
[1760320175504,0.2111,4169.7,4169.6,0.7682]
[1760320177908,0.7504,4169.7,4169.6,0.7682]
[1760320179209,0.4199,4169.7,4169.6,0.7682]
[1760320182010,0.4313,4169.6,4169.3,3.63913]
[1760320182207,0.43132,4169.4,4169.3,3.2078]
[1760320182513,1.18172,4169.4,4169.3,3.2078]
[1760320184216,1.18174,4169.2,4169.1,0.0021976]
[1760320184510,0.7504,4167.6,4167.5,3.2078]
[1760320185213,0.7504,4167.6,4167.5,3.761]
[1760320185408,0.7504,4167.6,4167.5,3.76347337]
[1760320186409,0.4199,4167.6,4167.5,3.97847337]
[1760320186615,0.2111,4167.6,4167.5,4.10577337]
[1760320187116,0.4199,4167.6,4167.5,4.10577337]
[1760320187414,3.81065222,4167.6,4167.5,0.00247337]
[1760320187712,3.81065222,4167.6,4167.5,0.22417337]
[1760320187917,0.43148,4167.9,4167.8,0.2217]
[1760320188214,0.43148,4167.9,4167.8,0.7669]
[1760320188215,4.25798974,4167.9,4167.8,0.7669]
[1760320188415,3.82650974,4167.9,4167.8,0.7669]
[1760320188606,0.3451,4167.8,4167.6,0.3163]
[1760320188810,0.7625,4167.7,4167.6,0.3163]
[1760320189012,3.90142193,4167.7,4167.6,0.3163]
[1760320189216,3.90142193,4167.7,4167.6,0.538]
[1760320189713,1.19401,4167.6,4167.5,0.00247337]
[1760320190019,1.19401,4167.6,4167.5,0.54047337]
[1760320190204,0.4174,4167.6,4167.5,0.89487337]
[1760320190808,0.7625,4167.6,4167.5,0.54047337]
[1760320191017,0.4174,4167.6,4167.5,0.89487337]
[1760320192818,0.7363,4167.6,4167.5,0.00247337]
[1760320193013,3.84884059,4167.6,4167.5,0.00247337]
[1760320194013,3.84884059,4167.6,4167.5,0.21387337]
[1760320194205,3.84884059,4167.6,4167.5,0.77427337]
[1760320194408,3.84884059,4167.6,4167.5,0.54687337]
[1760320195020,3.84884059,4167.6,4167.5,0.77427337]
[1760320195213,3.32144059,4167.6,4167.5,0.90337337]
[1760320195419,0.2156,4168.0,4167.9,0.7718]
[1760320195716,3.85479,4168.8,4168.7,0.2114]
[1760320195920,3.4234,4168.8,4168.7,0.7718]
[1760320196415,0.43135,4169.2,4168.7,1.20319]
[1760320196720,3.50851717,4168.9,4168.8,0.4388]
[1760320196920,3.82741717,4168.9,4168.8,0.4388]
[1760320197213,0.7643,4168.9,4168.8,0.7718]
[1760320197414,3.83164968,4168.9,4168.8,0.7718]
[1760320197716,3.63913,4169.4,4169.3,0.2114]
[1760320198015,6.80059399,4169.4,4169.3,0.5444]
[1760320198218,6.80059399,4169.4,4169.3,0.7718]
[1760320198521,7.11949399,4169.4,4169.3,0.7718]
[1760320199614,0.2156,4169.4,4169.3,0.7718]
[1760320201316,0.5345,4169.8,4169.7,0.2114]
[1760320201623,3.21043631,4170.0,4169.7,0.87008]
[1760320201822,3.42603631,4170.0,4169.9,0.7718]
[1760320202126,7.12790624,4170.0,4169.9,0.5444]
[1760320202316,3.60120624,4170.0,4169.9,0.7718]
[1760320203517,3.92010624,4170.0,4169.9,0.333]
[1760320203721,0.2156,4169.6,4169.5,4.1087]
[1760320204719,0.7643,4169.6,4169.5,3.2078]
[1760320205015,0.2156,4169.6,4169.5,4.1087]
[1760320205218,0.00263631,4170.0,4169.5,4.1087]
[1760320205219,0.3189,4169.9,4169.7,0.76429]
[1760320205418,0.2156,4169.6,4169.5,3.63911]
[1760320205620,1.1956,4169.6,4169.5,3.2078]
[1760320205823,1.1956,4169.6,4169.0,0.43136]
[1760320205824,0.7643,4169.1,4169.0,0.43136]
[1760320206017,3.28473194,4169.6,4169.5,0.4388]
[1760320206324,0.43131,4169.5,4169.2,0.333]
[1760320206524,0.7643,4169.3,4169.2,0.5444]
[1760320206722,0.7643,4168.5,4168.4,3.2078]
[1760320206929,0.4454,4167.9,4167.8,3.2078]
[1760320207225,0.3189,4167.9,4167.8,3.2078]
[1760320207415,0.3189,4167.7,4167.5,0.00247337]
[1760320207724,0.1269,4168.5,4167.5,0.00247337]
[1760320207725,0.3189,4168.6,4167.7,0.43149]
[1760320207922,3.2078,4168.9,4168.0,3.3369]
[1760320207923,0.43143,4168.4,4168.0,3.3369]
[1760320208122,3.15458573,4168.2,4168.1,0.333]
[1760320208521,3.15458573,4168.2,4168.0,3.3369]
[1760320208522,0.43145,4168.2,4167.5,4.10388337]
[1760320208718,3.47348573,4168.2,4167.6,0.333]
[1760320208928,3.15458573,4168.2,4168.0,0.333]
[1760320209128,0.3189,4168.1,4168.0,0.333]
[1760320209520,3.07980192,4168.1,4168.0,0.333]
[1760320209723,3.2078,4168.9,4168.4,0.43142]
[1760320210031,3.2078,4169.5,4169.0,0.56046]
[1760320210324,3.2078,4169.5,4168.9,0.43137]
[1760320210325,3.38595978,4169.4,4168.9,0.43137]
[1760320210720,0.3189,4169.3,4168.9,0.43137]
[1760320210915,3.06705978,4169.4,4168.9,0.43137]
[1760320211214,3.48726173,4169.2,4168.9,0.43137]
[1760320211418,3.16836173,4169.4,4169.1,0.333]
[1760320211620,3.76602,4169.5,4169.4,0.43132]
[1760320211621,3.2078,4169.5,4169.4,0.43132]
[1760320211829,0.3189,4169.9,4169.1,0.333]
[1760320212021,3.21043631,4170.0,4169.5,0.1291]
[1760320212331,0.3189,4169.8,4169.7,0.333]
[1760320212730,3.39955097,4169.8,4169.7,0.333]
[1760320214426,3.39955097,4169.8,4169.4,0.43132]
[1760320214427,0.3189,4169.7,4169.2,0.333]
[1760320214628,0.3189,4169.4,4169.0,3.63916]
[1760320214832,0.55822,4169.5,4169.0,3.97216]
[1760320215132,0.3189,4169.1,4169.0,3.2078]
[1760320215432,0.43133,4169.4,4169.0,3.2078]
[1760320215724,3.488683,4169.1,4169.0,3.2078]
[1760320215932,0.4404,4169.0,4168.4,3.2078]
[1760320216136,0.4314,4168.7,4168.4,3.2078]
[1760320216325,0.43144,4168.3,4168.1,0.333]
[1760320216628,0.3189,4168.5,4168.2,0.333]
[1760320216830,0.43141,4168.6,4168.4,0.333]
[1760320217026,0.43143,4168.4,4168.3,3.2078]
[1760320217232,0.75033,4168.4,4168.3,3.2078]
[1760320217428,0.43146,4168.1,4167.8,3.2078]
[1760320217633,0.3189,4168.0,4167.8,3.5408]
[1760320217833,0.3189,4168.0,4167.9,0.333]
[1760320218527,0.43146,4168.1,4167.9,0.333]
[1760320218833,0.43147,4168.0,4167.8,3.2078]
[1760320219432,0.43147,4168.0,4167.9,0.333]
[1760320219738,0.75037,4168.0,4167.9,0.333]
[1760320221736,0.3361,4167.9,4167.8,3.5347]
[1760320222129,0.43147,4168.0,4167.9,0.3269]
[1760320222532,0.76757,4168.0,4167.9,0.3269]
[1760320222725,0.5663,4167.9,4167.8,3.2078]
[1760320222930,1.21591,4167.6,4167.5,0.00247337]
[1760320223440,4.3846924,4167.6,4167.5,0.00247337]
[1760320223735,0.2302,4166.4,4166.3,0.5583]
[1760320223930,0.7844,4166.8,4166.7,0.5583]
[1760320224235,0.2302,4167.2,4167.1,0.7845]
[1760320224436,0.3361,4167.5,4167.1,0.4576]
[1760320224629,0.3361,4167.5,4167.4,0.5583]
[1760320224630,0.78664188,4167.5,4167.4,0.5583]
[1760320224830,0.7844,4167.2,4167.1,0.00248568]
[1760320225229,3.91205801,4167.2,4167.1,0.00248568]
[1760320225938,7.11985801,4167.2,4167.1,0.00248568]
[1760320226840,7.11985801,4167.2,4165.7,1.07926]
[1760320226841,0.43165,4166.3,4165.8,0.43169]
[1760320227025,0.1269,4166.5,4165.7,0.3269]
[1760320227026,0.3361,4166.4,4165.7,0.3269]
[1760320227230,3.12802204,4166.2,4166.0,0.4621]
[1760320227439,3.89576204,4166.4,4166.1,0.3269]
[1760320227630,3.46412204,4166.3,4166.0,0.1352]
[1760320227836,0.3361,4166.8,4166.2,3.5347]
[1760320228032,3.2078,4167.2,4167.0,0.1352]
[1760320228237,3.14358815,4167.1,4167.0,0.4621]
[1760320228540,3.2078,4167.2,4167.1,0.3269]
[1760320228739,3.5439,4167.2,4167.1,0.3269]
[1760320229039,0.3361,4167.2,4167.1,0.3269]
[1760320229242,0.3361,4167.4,4167.1,0.43156]
[1760320229538,3.91133779,4167.4,4167.2,0.3269]
[1760320229836,3.47980779,4167.4,4167.3,0.3269]
[1760320231334,0.3361,4167.3,4167.1,0.3269]
[1760320231540,3.47980779,4167.4,4166.8,0.3269]
[1760320231935,3.57523779,4167.4,4167.0,0.43156]
[1760320232135,3.57523779,4167.4,4165.5,2.29385]
[1760320232136,0.3361,4166.8,4166.2,3.5347]
[1760320232334,0.1215,4167.0,4166.2,3.2078]
[1760320232539,0.3361,4166.6,4166.3,0.3269]
[1760320232837,3.29019868,4166.5,4165.8,0.3269]
[1760320233040,3.29019868,4166.5,4165.5,0.1352]
[1760320233041,0.3361,4166.3,4166.2,0.3269]
[1760320233442,0.3361,4166.2,4165.8,0.75859]
[1760320233742,3.51716017,4166.2,4165.9,0.43168]
[1760320234049,3.18106017,4166.2,4166.1,0.76046725]
[1760320234347,3.07659464,4166.3,4166.1,0.32880725]
[1760320234543,0.3361,4166.2,4166.1,0.00190725]
[1760320235044,3.41269464,4166.2,4166.1,0.00190725]
[1760320240440,3.86099464,4166.2,4166.1,0.00190725]
[1760320241945,3.07659464,4166.2,4166.1,0.32880725]
[1760320242245,3.2078,4166.4,4166.1,0.76046725]
[1760320242246,3.63944,4166.4,4166.1,0.76046725]
[1760320242440,3.97554,4166.4,4166.2,0.3269]
[1760320242641,3.47955025,4166.3,4166.2,0.3269]
[1760320242947,0.3361,4166.2,4166.1,0.00190725]
[1760320243141,0.3361,4166.2,4166.1,0.32880725]
[1760320244445,3.57510025,4166.3,4166.2,0.3269]
[1760320244648,3.2078,4166.9,4166.2,0.3269]
[1760320245049,3.2078,4166.9,4166.5,0.43162]
[1760320245050,0.4316,4166.8,4166.5,0.43162]
[1760320245252,0.3361,4166.8,4166.7,0.3269]
[1760320245645,3.44629393,4166.8,4166.7,0.3269]
[1760320246547,3.2078,4167.4,4166.7,0.3269]
[1760320246745,3.2078,4167.4,4167.3,0.3252]
[1760320247146,6.26962041,4167.4,4167.3,0.3252]
[1760320247343,3.2078,4167.4,4167.3,0.3252]
[1760320248445,3.2078,4167.4,4166.9,3.2078]
[1760320248446,0.75467,4167.0,4166.9,3.2078]
[1760320248852,0.3231,4166.7,4166.5,0.75682]
[1760320249043,3.2078,4166.8,4166.0,0.3252]
[1760320249249,0.3231,4166.2,4165.8,3.2078]
[1760320249644,3.3769158,4166.2,4165.8,3.2078]
[1760320249843,3.2078,4166.8,4166.4,0.43163]
[1760320250050,3.2078,4166.8,4166.6,0.3252]
[1760320250253,3.13835537,4166.7,4166.6,0.3252]
[1760320250552,0.3231,4166.5,4166.3,0.75684]
[1760320250747,0.43164,4166.4,4166.1,0.32710725]
[1760320251055,0.3231,4166.3,4166.1,0.32710725]
[1760320251250,0.3231,4166.2,4166.1,0.75876725]
[1760320251455,0.43163,4166.5,4166.2,0.43165]
[1760320251655,0.3279,4166.4,4166.2,0.43165]
[1760320251954,3.43843237,4166.2,4166.1,0.00190725]
[1760320252254,0.3279,4166.2,4166.1,0.00190725]
[1760320252448,3.41131443,4166.2,4166.1,0.00190725]
[1760320253649,3.41131443,4166.2,4165.3,3.95754]
[1760320253650,0.43173,4165.5,4165.3,3.2078]
[1760320253850,0.3279,4165.4,4165.3,3.2078]
[1760320254052,3.43518628,4165.4,4165.3,3.2078]
[1760320254657,3.43518628,4165.4,4165.3,3.21054012]
[1760320255455,3.43518628,4165.4,4165.3,0.00274012]
[1760320258559,3.43518628,4165.4,4165.3,0.32074012]